Cogmind - Beta 14 @@@ ROGUE MODE // 2024.09.06 @ 15:57:51 Player: Lunace Result: Self-destructed Performance ------------- Evolutions (5) 2500 Regions Visited (5) 1000 Robots Destroyed (33) 165 Value Destroyed (1079) 1079 Prototype IDs (21) 420 Alien Tech Used (0) 0 Bonus (337) 337 TOTAL SCORE: 5501 Bonus ------- Follower Combat Kills 37 Registered with UFD 300 Cogmind --------- Core Integrity 985/1000 Matter 270/300 Energy 146/150 System Corruption 0% Temperature Cool (3) Movement Flying (37) Location -5/Factory Parts ------- > --- POWER (2) -------- Light Angular Momentum Engine > --- PROPULSION (6) --- Biomechanical Wings Field Propulsion Drive Flightbrick > --- UTILITY (7+3) ---- Enhanced Optical Array Experimental Terrain Scanner Advanced Shield Generator Makeshift Hacking Suite Makeshift System Shield Advanced System Shield > --- WEAPON (2) ------- Greatsword > --- INVENTORY (5) ---- Scrap Suit Improved Medium Armor Plating Junk Cannon (5) Peak State ------------ > --- POWER ------------ Light Angular Momentum Engine > --- PROPULSION ------- Biomechanical Wings Field Propulsion Drive Flightbrick > --- UTILITY ---------- Experimental Terrain Scanner Thermal Defense Suite Advanced Shield Generator Makeshift Hacking Suite Makeshift System Shield Advanced System Shield > --- WEAPON ----------- Greatsword > --- INVENTORY -------- Scrap Suit Improved Medium Armor Plating Junk Cannon [Rating: 98] Favorites ----------- Power Makeshift Power Source Engine Makeshift Power Source Propulsion Light Treads Treads Light Treads Wheel Subdweller Monowheel Flight Unit Flightbrick Utility Large Storage Unit Device Disposable Heat Sink Storage Large Storage Unit Processor Enhanced Optical Array Hackware Makeshift Hacking Suite Protection Makeshift Thermal Plating Weapon Junk Cannon Energy Gun Subdweller Laser Energy Cannon Subdweller Beam Cannon Ballistic Gun Subdweller Machine Gun Ballistic Cannon Battle Cannon Special Weapon Junk Cannon Impact Weapon Makeshift Hammer Slashing Weapon Greatsword Build | -11 -10 -10 -7 -7 -5 ------- Run | Yrd Mat Sub Rec Scr Fac Slots Evolved 10 | . . . . . 10 Power 1 | . . . . . 1 Propulsion 4 | . . . . . 4 Utility 5 | . . . . . 5 Weapon . | . . . . . . Parts Attached 69 | 7 2 33 2 12 13 Power 11 | 1 . 5 . 4 1 Engine 11 | 1 . 5 . 4 1 Core . | . . . . . . Reactor . | . . . . . . Propulsion 17 | 2 . 9 1 2 3 Treads 2 | 2 . . . . . Leg . | . . . . . . Wheel 12 | . . 9 1 2 . Hover . | . . . . . . Flight 3 | . . . . . 3 Utility 20 | 2 1 5 1 3 8 Device 7 | 1 . 1 . 2 3 Storage 5 | 1 1 1 1 1 . Processor 1 | . . . . . 1 Hackware 3 | . . . . . 3 Protection 4 | . . 3 . . 1 Artifact . | . . . . . . Weapon 21 | 2 1 14 . 3 1 Energy Gun 2 | 1 . 1 . . . Energy Cannon 4 | . . 3 . 1 . Ballistic Gun 7 | 1 . 5 . 1 . Ballistic Cannon 3 | . . 3 . . . Launcher . | . . . . . . Special Weapon 2 | . 1 . . 1 . Impact Weapon 2 | . . 2 . . . Slashing Weapon 1 | . . . . . 1 Piercing Weapon . | . . . . . . Special Melee Weapon . | . . . . . . Unidentified Prototypes 3 | . . . . 1 2 Parts Lost 2 | . . 2 . . . Power 1 | . . 1 . . . Propulsion 1 | . . 1 . . . Utility . | . . . . . . Weapon . | . . . . . . Highest Loss Streak 1 | . . 1 . . . To Critical Strikes . | . . . . . . Average Slot Usage (%) 84 | . 100 95 83 67 43 Engine 13 | . 14 13 14 13 5 Treads 7 | . 28 12 . . . Wheel 13 | . . 15 22 14 . Device 7 | . 14 4 . 13 10 Storage 11 | . 14 10 14 14 . Protection 5 | . . 8 14 . . Energy Gun 2 | . 12 4 . . . Energy Cannon 2 | . . 5 . . . Ballistic Gun 5 | . 14 7 3 . . Ballistic Cannon 4 | . . 10 . . . Special Weapon 3 | . 1 . . 10 . Impact Weapon 1 | . . . 14 . . Peak Build Rating 98 | 7 7 24 28 45 98 Average Rating 25 | 5 7 17 25 36 83 On Entrance 18 | . 7 7 24 28 44 Naked Turns . | . . . . . . Heaviest Build 68 | 14 29 42 55 68 24 Greatest Support 40 | 40 40 40 28 28 37 Greatest Overweight (x) 15 | . . 3 5 15 . Average Overweight (x) 1 | . . . 3 1 . Largest Inventory Capacity 20 | 8 15 15 20 20 20 Average Capacity 15 | 7 13 12 19 20 5 Most Carried 20 | 1 2 15 20 20 14 Average Carried 11 | . 1 9 19 17 5 Final Capacity 20 | 8 15 15 20 20 5 Final Carried 19 | 1 2 14 19 18 5 Class Distribution -------------------- 76% | Mutant 10% | Subdweller-Mutant 4% | Scavenger-Mutant 3% | Hacker-Mutant 3% | Derelict-Mutant Dominant Class ---------------- Mutant | -10/Materials Mutant | -10/Subcaves Mutant | -7/Recycling Mutant | -7/Scraptown Hacker-Mutant | -5/Factory Resources | -11 -10 -10 -7 -7 -5 ----------- Run | Yrd Mat Sub Rec Scr Fac Matter Collected 1360 | 223 91 780 46 120 100 Remotely . | . . . . . . Salvage Created 1130 | 38 137 575 330 . 50 Parts 65 | 6 12 39 5 . 3 Haulers Intercepted . | . . . . . . Recyclers Shooed 1 | 1 . . . . . Parts Field Recycled . | . . . . . . Retrieved Matter . | . . . . . . Parts Self-Destructed 17 | . . 17 . . . Prevented . | . . . . . . Kills | -11 -10 -10 -7 -7 -5 ------- Run | Yrd Mat Sub Rec Scr Fac Combat Hostiles Destroyed 26 | . 2 19 4 . 1 Melee 2 | . . . 1 . 1 Guns 7 | . 2 5 . . . Cannons 14 | . . 14 . . . Classes Destroyed 10 | 1 2 3 4 . . Tunneler 2 | 2 . . . . . Recycler 1 | . . . 1 . . Turret 1 | . . 1 . . . Watcher 3 | . 3 . . . . Swarmer 4 | . . 4 . . . Grunt 3 | . 2 . . . 1 Sentry 2 | . . . 2 . . Hunter 1 | . . . 1 . . Programmer 1 | . . . 1 . . Subdweller 15 | . . 15 . . . Best Kill Streak 3 | 1 2 3 3 . 1 Combat Bots Only 3 | . 2 3 2 . 1 Max Kills in Single Turn 1 | 1 1 1 1 . 1 Gunslinging . | . . . . . . Exploded . | . . . . . . Melee 1 | . . . 1 . 1 Uniques/NPCs Destroyed . | . . . . . . Combat | -11 -10 -10 -7 -7 -5 -------- Run | Yrd Mat Sub Rec Scr Fac Hostile Shots Fired 148 | . 20 96 13 . 19 Missed 51 | . 6 29 4 . 12 Damage Taken 1449 | . 156 1075 96 . 122 Core 245 | . 55 154 21 . 15 Absorbed by Shields 44 | . . . . . 44 Ignored by Resistances 3 | . . . 3 . . Core Remaining (%) 54 | 100 . . . 8 . Volleys Fired 141 | 5 27 109 . . . Largest 2 | 2 2 2 . . . Hottest 160 | 60 100 160 . . . Shots Fired 210 | 10 47 153 . . . Gun 93 | 10 40 43 . . . Cannon 110 | . . 110 . . . Launcher . | . . . . . . Special 7 | . 7 . . . . Kinetic 124 | 5 20 99 . . . Thermal 86 | 5 27 54 . . . Explosive . | . . . . . . Electromagnetic . | . . . . . . Robot Hit Streak 14 | 3 11 14 . . . Robot Miss Streak 3 | 2 3 3 . . . Penetration Max . | . . . . . . Secondary Targets . | . . . . . . Shots Hit Robots 115 | 5 30 71 5 . 4 Core Hits 43 | 2 10 29 . . 2 Critical Kills 1 | . . 1 . . . Critical Parts Destroyed 2 | . . . 2 . . Critical Strikes 7 | . . 3 2 . 2 Destroy 3 | . . 3 . . . Smash 2 | . . . 2 . . Sever 2 | . . . . . 2 Melee Attacks 29 | . . 10 6 . 13 Impact 16 | . . 10 6 . . Slashing 13 | . . . . . 13 Piercing . | . . . . . . Sneak Attacks 4 | . . . 2 . 2 Combat Hostiles 1 | . . . 1 . . Follow-up Attacks . | . . . . . . Damage Inflicted 2546 | 73 361 1495 331 . 286 Guns 992 | 73 361 558 . . . Cannons 937 | . . 937 . . . Explosions . | . . . . . . Melee 617 | . . . 331 . 286 Ramming . | . . . . . . Kinetic 1269 | 27 176 1066 . . . Thermal 660 | 46 185 429 . . . Explosive . | . . . . . . Electromagnetic . | . . . . . . Impact 331 | . . . 331 . . Slashing 286 | . . . . . 286 Piercing . | . . . . . . Highest Corruption . | . . . . . . Average Corruption . | . . . . . . Corruption Purged . | . . . . . . Corruption Blocked . | . . . . . . Overload Shots . | . . . . . . Overflow Damage 261 | . . 10 251 . . Projectiles 10 | . . 10 . . . Explosions . | . . . . . . Melee 251 | . . . 251 . . Knockbacks 3 | . . 2 1 . . Impact 1 | . . . 1 . . Kinetic 2 | . . 2 . . . Secondary . | . . . . . . Self-Inflicted Damage . | . . . . . . Shots . | . . . . . . Rammed . | . . . . . . Targets Rammed . | . . . . . . Kicked . | . . . . . . Crushed . | . . . . . . Highest Temperature 126 | . 102 126 . . . Average Temperature 39 | . 44 32 . . . Received Heat Transfer 335 | . 84 225 12 . 14 Siege Activations . | . . . . . . Robots Corrupted 3 | . . . 3 . . Combat Hostiles 3 | . . . 3 . . Parts Fried 6 | . . . 6 . . Impact Corruptions 7 | . . . 7 . . Robots Melted . | . . . . . . Combat Hostiles . | . . . . . . Parts Melted 2 | . 1 1 . . . Heat Transferred 1082 | 100 425 557 . . . Parts Sabotaged . | . . . . . . Parts Stolen . | . . . . . . Parts Stripped . | . . . . . . Power Chain Reactions . | . . . . . . Alert | -11 -10 -10 -7 -7 -5 ------- Run | Yrd Mat Sub Rec Scr Fac Peak Influence 169 | 10 87 . 166 . 169 Initial 6 | . 6 . . . . Average 43 | 4 42 . 45 . 55 Maximum Alert Level . | . . . . . . Low Security (%) 100 | 100 100 . 100 . 100 Level 1 . | . . . . . . Level 2 . | . . . . . . Level 3 . | . . . . . . Level 4 . | . . . . . . Level 5 . | . . . . . . High Security . | . . . . . . Max Security . | . . . . . . Squads Dispatched 6 | . 2 . . . 4 Investigation 2 | . 1 . . . 1 Extermination 1 | . . . . . 1 Reinforcement 3 | . 1 . . . 2 Assault . | . . . . . . Garrison . | . . . . . . Intercept . | . . . . . . Searches Triggered . | . . . . . . Construction Impeded . | . . . . . . Haulers Reinforced . | . . . . . . Active Scanning Responses . | . . . . . . Cargo Convoy Interrupts . | . . . . . . Stealth | -11 -10 -10 -7 -7 -5 --------- Run | Yrd Mat Sub Rec Scr Fac Distress Signals 2 | . 2 . . . . Communications Jammed . | . . . . . . Distress Signals . | . . . . . . Times Spotted 48 | . 5 21 3 . 19 Peak Tracking Total 14 | . 2 3 2 . 14 Tactical Retreats 4 | . . 2 . . 2 Traps | -11 -10 -10 -7 -7 -5 ------- Run | Yrd Mat Sub Rec Scr Fac Traps Triggered 3 | . 1 2 . . . Indirectly . | . . . . . . Trap Hack Attempts . | . . . . . . Triggered . | . . . . . . Disarmed . | . . . . . . Reprogrammed . | . . . . . . Reused . | . . . . . . Traps Extracted . | . . . . . . Installed 1 | . . 1 . . . Triggered . | . . . . . . Machines | -11 -10 -10 -7 -7 -5 ---------- Run | Yrd Mat Sub Rec Scr Fac Machines Disabled 3 | . 1 2 . . . Max in Single Turn 1 | . 1 1 . . . Machines Repaired . | . . . . . . Machines Dismantled . | . . . . . . Machines Sabotaged . | . . . . . . Overloaded Fab Kills . | . . . . . . Hacking | -11 -10 -10 -7 -7 -5 --------- Run | Yrd Mat Sub Rec Scr Fac Machines Accessed 22 | . 4 2 10 3 3 Terminals 10 | . 3 . 5 . 2 Fabricators . | . . . . . . Repair Stations . | . . . . . . Recycling Units 7 | . 1 . 5 . 1 Scanalyzers . | . . . . . . Garrison Access . | . . . . . . Total Hacks 62 | . 12 6 19 16 9 Successful 40 | . 4 6 9 16 5 Failed 22 | . 8 . 10 . 4 Catastrophic 5 | . 1 . 3 . 1 Database Lockouts . | . . . . . . Manual 32 | . 6 . 17 . 9 Terminals 29 | . 10 . 11 . 8 Fabricators . | . . . . . . Repair Stations . | . . . . . . Recycling Units 11 | . 2 . 8 . 1 Scanalyzers . | . . . . . . Garrison Access . | . . . . . . Terminal Hacks 26 | . 2 6 . 16 2 Record 14 | . . 5 . 9 . Robot Analysis 7 | . . . . 7 . Alert Level 1 | . 1 . . . . Unreport Threat 2 | . . . . . 2 Registered Components 1 | . 1 . . . . Derelict Proto ID Bank 1 | . . 1 . . . Fabricator Hacks . | . . . . . . Repair Station Hacks . | . . . . . . Recycling Unit Hacks 1 | . . . 1 . . Retrieve Components 1 | . . . 1 . . Scanalyzer . | . . . . . . Garrison Access Hacks . | . . . . . . Unauthorized Hacks 13 | . 2 . 8 . 3 Terminals 7 | . 2 . 3 . 2 Botnet 3 | . 2 . . . 1 Skim 4 | . . . 3 . 1 Fabricators . | . . . . . . Repair Stations 1 | . . . . . 1 Recycling Units 5 | . . . 5 . . Tunnel 5 | . . . 5 . . Fedlink 1 | . . . . . 1 Scanalyzers . | . . . . . . Garrison Access . | . . . . . . Data Cores Recovered . | . . . . . . Used . | . . . . . . Hacking Detections 12 | . 4 . 6 . 2 Full Trace Events . | . . . . . . Feedback Events . | . . . . . . Feedback Blocked . | . . . . . . Robot Schematics Acquired . | . . . . . . Robots Built . | . . . . . . Authchips . | . . . . . . Time . | . . . . . . Total Robot Build Rating . | . . . . . . Part Schematics Acquired . | . . . . . . Parts Built . | . . . . . . Authchips . | . . . . . . Time . | . . . . . . Total Part Build Rating . | . . . . . . Parts Repaired . | . . . . . . Time . | . . . . . . Parts Recycled . | . . . . . . Recycled Matter . | . . . . . . Retrieved Matter . | . . . . . . Retrieved Components . | . . . . . . Parts Scanalyzed . | . . . . . . Part Schematics Acquired . | . . . . . . Parts Damaged . | . . . . . . Bothacking | -11 -10 -10 -7 -7 -5 ------------ Run | Yrd Mat Sub Rec Scr Fac Used RIF Installer . | . . . . . . Robots Hacked . | . . . . . . Non-combat . | . . . . . . Combat . | . . . . . . Robot Hacks Applied . | . . . . . . Relay Couplers Released . | . . . . . . Fabnet Peak Effective % . | . . . . . . Robots Rewired 8 | . . . 8 . . Allies Hacked . | . . . . . . Hacks Repelled . | . . . . . . Allies | -11 -10 -10 -7 -7 -5 -------- Run | Yrd Mat Sub Rec Scr Fac Total Allies 9 | . . . 8 1 . Largest Group 8 | . . . 8 3 2 Highest-Rated Group 206 | . . . 206 121 113 Highest-Rated Ally 73 | . . . 40 73 73 Total Orders 5 | . . . . 5 . STAY 1 | . . . . 1 . ROAM 1 | . . . . 1 . DROP 1 | . . . . 1 . COLLECT 2 | . . . . 2 . Ally Attacks 3 | . . . . . 3 Total Damage 104 | . . . . . 104 Kills 1 | . . . . . 1 Allies Corrupted . | . . . . . . Allies Melted . | . . . . . . Intel | -11 -10 -10 -7 -7 -5 ------- Run | Yrd Mat Sub Rec Scr Fac Robot Analysis Total 7 | . . . . 7 . Derelict Logs Recovered 5 | . . 1 . 4 . Drone Launches . | . . . . . . Drone Recoveries . | . . . . . . Exploration | -11 -10 -10 -7 -7 -5 ------------- Run | Yrd Mat Sub Rec Scr Fac Turns Passed 7796 | 96 525 3795 710 2413 257 Spaces Moved 5401 | 45 231 2487 457 1753 428 Core 2 | 1 . . . 1 . Treads 1157 | 44 231 882 . . . Legs . | . . . . . . Wheels 3814 | . . 1605 457 1752 . Hover . | . . . . . . Flight 428 | . . . . . 428 Fastest Speed 35 | 50 160 110 115 115 35 Average Speed 125 | 157 160 134 136 125 38 Slowest Speed 800 | 160 160 240 155 800 40 Overloaded Moves . | . . . . . . Propulsion Burnouts . | . . . . . . Robots Hopped 2 | . . . . . 2 Cave-ins Triggered . | . . . . . . Exploration Rate (%) 61 | 4 59 96 96 90 23 Regions Visited 5 Branch Regions 3 Pre-discovered Areas 7 | . . 1 5 1 . Known Exits Taken . | . . . . . . Unknown Exits Taken 5 | 1 1 1 1 1 . Scrap Searched 17 | . . 11 . 6 . Spaces Dug 27 | . 1 20 1 . 5 Terrain Destroyed 40 | . 1 33 1 . 5 Melee 13 | . . 7 1 . 5 Projectile 27 | . 1 26 . . . AOE . | . . . . . . Terrain Rammed . | . . . . . . Walls Destroyed . | . . . . . . Machines Disabled . | . . . . . . Actions | -11 -10 -10 -7 -7 -5 --------- Run | Yrd Mat Sub Rec Scr Fac Total 6184 | 57 325 2786 538 1983 495 Wait 336 | . 64 63 11 167 31 Move 5392 | 44 230 2486 456 1752 424 Hop 2 | . . . . . 2 Pick Up 63 | 1 1 34 4 23 . Fast Attach 29 | 7 . 11 1 3 7 Attach 19 | . . 10 . 3 6 Detach 9 | . . 6 1 . 2 Swap 21 | . 2 12 1 6 . Drop 81 | . 1 38 3 29 10 Fire 141 | 5 27 109 . . . Melee 29 | . . 10 6 . 13 Ram . | . . . . . . Kick . | . . . . . . Crush . | . . . . . . Escape Stasis . | . . . . . . Rewire 55 | . . . 55 . . Trap 1 | . . 1 . . . Miscellaneous 6 | . . 6 . . . Route ------- -11/Scrapyard -10/Materials (discovered 4 exits: [*Mat x2] / [*Min] / *Sub) -10/Subcaves (discovered 3 exits: [*Mat x2] / *Rec) -7/Recycling (discovered 2 exits: *Fac / *Scr) -7/Scraptown (discovered 2 exits: *Fac x2) -5/Factory (discovered 5 exits: *Fac x4 / Upp) History --------- Turn | Location | Event 24 | -11/Scrapyard | Discovered new exit (range 15) 97 | -11/Scrapyard | Entered Materials 187 | -10/Materials | Discovered new exit (range 16) 311 | -10/Materials | Build established: Mutant 339 | -10/Materials | Discovered new exit (range 6) 520 | -10/Materials | Discovered new exit (range 4) 612 | -10/Materials | Discovered new exit (range 3) 622 | -10/Materials | Entered Subcaves 695 | -10/Subcaves | Discovered new exit (range 13) 1006 | -10/Subcaves | Discovered new exit (range 11) 1049 | -10/Subcaves | Discovered new exit (range 14) 1202 | -10/Subcaves | Shifting Twisted Machinery released Sub. Monowheel 1341 | -10/Subcaves | Shifting Twisted Machinery released Sub. Monowheel 1415 | -10/Subcaves | Visited 4L-MR0's lab 1430 | -10/Subcaves | Found Flightbrick 1781 | -10/Subcaves | Disturbed a concealed Subdweller 1841 | -10/Subcaves | Shifting Twisted Machinery released Piercing Trap 1848 | -10/Subcaves | Learned location of Zion (-6) 1848 | -10/Subcaves | Met a Zionite searching for "candidates" 1879 | -10/Subcaves | Shifting Twisted Machinery released Sub. Beam Cannon 2495 | -10/Subcaves | Visited Clippyterm 2498 | -10/Subcaves | Learned 40 Factory zone layouts 2498 | -10/Subcaves | Learned Factory stockpile data 2589 | -10/Subcaves | Learned location of 1 exit from Materials 2638 | -10/Subcaves | Disturbed a concealed Subdweller 2653 | -10/Subcaves | Core integrity fell below 50% 3301 | -10/Subcaves | Build established: Subdweller-Mutant 3416 | -10/Subcaves | A swath of the cavern ceiling suddenly collapsed 3618 | -10/Subcaves | Core integrity fell below 20% 4239 | -10/Subcaves | Build established: Scavenger-Mutant 4417 | -10/Subcaves | Entered Recycling 4540 | -7/Recycling | Build established: Mutant 4742 | -7/Recycling | Discovered new exit (range 14) 5101 | -7/Recycling | Scanned before Scraplab entrance 5117 | -7/Recycling | Entered Scraplab 5126 | -7/Recycling | Discovered new exit (range 2) 5127 | -7/Recycling | Entered Scraptown 5127 | -7/Scraptown | Accompanied by 2 allies 5287 | -7/Scraptown | Scanned Subdweller tech in exchange for log data 5301 | -7/Scraptown | Learned 12 Factory zone layouts 5303 | -7/Scraptown | Learned location of Extension (-4) 5305 | -7/Scraptown | Learned Research emergency access door positions 5348 | -7/Scraptown | Visited Awakened 5367 | -7/Scraptown | Visited Fellowship of the Rings 5378 | -7/Scraptown | Visited The Evicted 5387 | -7/Scraptown | Visited Junk Repository 5422 | -7/Scraptown | Heard Great Nut preacher, LISTEN AND RECITE! 5612 | -7/Scraptown | Visited UFD Registry 5612 | -7/Scraptown | Registered with UFD as "Matrixstep" 5622 | -7/Scraptown | Visited TADAMA 5643 | -7/Scraptown | Visited Symbiants 5657 | -7/Scraptown | Visited Cyclists 5666 | -7/Scraptown | Entered Cyclist Reading Room 5722 | -7/Scraptown | Visited Junk Cannon Lab 5727 | -7/Scraptown | Found Prototype Special Weapon 5727 | -7/Scraptown | Identified Junk Cannon 5758 | -7/Scraptown | Visited Chapter 10 5786 | -7/Scraptown | Visited DA-N13 Charitable Foundation 5795 | -7/Scraptown | Found DCF Scrap (30 items) 5869 | -7/Scraptown | Delivered Scrap Shield to a Scientist 5998 | -7/Scraptown | Visited Curators Association 6041 | -7/Scraptown | Visited Analyses Database 6069 | -7/Scraptown | Visited Botcube Research 6075 | -7/Scraptown | Found Botcube 6094 | -7/Scraptown | Visited Modified Component R&D 6146 | -7/Scraptown | Visited Infowarlord's Domain 6157 | -7/Scraptown | Found Exp. Terrain Scanner 6183 | -7/Scraptown | Visited Science Testing Area 6204 | -7/Scraptown | Visited LU-1G1's Boring Crew 7018 | -7/Scraptown | Discovered new exit (range 13) 7364 | -7/Scraptown | Botcube activated 7384 | -7/Scraptown | Botcube completed mutation into wheeled form, armed with 2 guns. 7489 | -7/Scraptown | Found Scrap Suit 7518 | -7/Scraptown | Discovered new exit (range 5) 7540 | -7/Scraptown | Entered Factory 7540 | -5/Factory | Accompanied by 2 allies 7540 | -5/Factory | Evolved 10 slots: Power x1, Propulsion x4, Utility x5 7541 | -5/Factory | Identified exit to Upper Caves 7541 | -5/Factory | Identified exit to Factory 7541 | -5/Factory | Attached Flightbrick, gained temporary slots: Utility x3 7619 | -5/Factory | Noticed a derelict Sapper rigging charges 7797 | -5/Factory | Self-destructed Last Messages --------------- Terminal linked with 0 systems. Please expand to 4 more systems! >>Trojan(Botnet) Trojan loaded successfully. Testing... Terminal linked with 0 systems. Awaiting botnet instructions. >>Alert(Purge) Purged threat record, alert level lowered. >>Alert(Purge) Purged threat record, alert level lowered. 07790_ ALERT: Rogue bot located, Programmers report to Factory Zone 6T. 07794_ O-24 Administrator: "IFF HANDSHAKE FAILED. SECURING TERMINAL." 07794_ O-24 Administrator uses terminal to summon reinforcements. 07794_ ALERT: Hostiles spotted, dispatching reinforcements to Terminal F004. 07794_ O-24 Administrator locks terminal. Map ----- +----------------------------------------------------+ | ????????????########### | | ??????????????????????#####+#######+###### ### | | ???????????????????????# #????# # | | ?????????????########### #????# # | | ?????????????# # #????# # | | ?????????????# # #????# # | | ?????????????# # #????# # | | ########?????# """" # #????# # | | # #?????# """" # #????# # | | # #?????# """" # #????# # | | # """" ####### """" # #????# # | | # """" # # # ###### # | | # """" # ###+####### + # | | # """" # H #??# ###### # | | # """" + h #??##############????# ### | | # """" # #????????????????????##### #?? | | # # #????????????????????????# #?? | | # # #????????????????????????# #?? | | # ######## #????????????????????????# #?? | | # #??????# ########?????????????????# #?? | | # #??????# ]= #?????????????????# #?? | | # #??????# ! #?????????????????# #?? | | ########??????# ]]#?????????????????# #?? | | ??????????????# ]]##########????????# #?? | | ??????????????# # #????????# #?? | | ??????????????# ""@ # #????????# #?? | | ???????######## """ "" #"""" #????????# #?? | | ???????# """ T" #"""" #????????# #?? | | ???????# """ o"" #"""" #????????# #?? | | ???????# "" #"""" #????????# #?? | | ???????# # #????????# #?? | | ######## g # #????????# #?? | | # #### ########### # #????????# #?# | | # #??# # # ###+############### ### | | # #??# # """" # | | # """ #??# # """" + ######### | | # """ #### # """" # #???????# | | # """ + + """" # #???????? | | # # #### + t #???????? | | # """ # #??# #################+########??? | | # """ # #??# #????????# #??? | | # """ # #??#/#########????????# """"""""" #??? | | # # #??# #????????????????# ! #??? | | # # #??# #?????#######????# """"""""" #### | | ####### #?## ##????# #????# + | | ??????# ### ###### #????# """"""""" #### | | ??????# < #????# =#??? | | ??????##### ###### #????# """"""""" #??? | | ??????????#####????# #????# #??? | | ???????????????????#######????# #??? | +----------------------------------------------------+ Best States ------------- Heat Dissipation 40 Coolant Potential 50 Energy Generation 18 Energy Capacity 300 Matter Stores 300 Matter Capacity 300 Sight Range 22 Terrain Scan Range 30 Terrain Scan Density 10 Armor Coverage 800 Resistance: TH 10 Evasion (%) 63 Recoil Reduction 2 Offensive Hacking 11 Defensive Hacking 25 Item Schematics ----------------- None Robot Schematics ------------------ None Fabricated ------------ Nothing Alien Tech Used ----------------- None Achievements -------------- None Challenges ------------ None Game ------ Seed AngularGhostShotgun Manual? 0 Play Time 00:53:58 Cumulative 332.2 hours Start 2024.09.06 @ 14:06:32 End 2024.09.06 @ 15:57:51 Sessions 3 Manual Loads 0 Difficulty Rogue Special Mode None Game No. 334 Rogue 329 Adventurer 5 Explorer 0 Win Type - Total 5 Types 4/0/0/1/0/0/0/0/0 Lore% 76 Gallery% 82 Achievement% 67 Wizard Run 0 Options --------- Layout 1 ASCII 0 Keyboard 0 Movement Mouse Keybinds 0 Fullscreen 1 Font 24/Terminus Map View 50x35 Zoom Use 0% Tactical HUD 1 Map Filters NONE Filters NONE Steam 1 RUN: b59bfe67-30d5-4710-9b96-ab00e4966c52